[Event "Titled Tuesday Blitz January 10 Early 2023"]
[White "Afanasieva, Alexandra"]
[Black "Kuzmin, Roman"]
[WhiteFideId "34126926"]
[BlackFideId "44134932"]
[WhiteElo "1857"]
[BlackElo "2198"]
[Result "0-1"]
[Round "08"]
[TimeControl "180+2"]
[Date "2023.01.10"]
[WhiteClock "0:02:29"]
[BlackClock "0:02:40"]

1. e4 {[%clk 0:03:00]}  c5 {[%clk 0:02:59]} 2. Nf3 {[%clk 0:03:00]}  d6 {[%clk 0:02:59]} 3. d4 {[%clk 0:03:00]}  cxd4 {[%clk 0:03:00]} 4. Nxd4 {[%clk 0:03:01]}  Nf6 {[%clk 0:03:01]} 5. f3 {[%clk 0:03:02]}  e5 {[%clk 0:02:58]} 6. Nb3 {[%clk 0:03:02]}  d5 {[%clk 0:02:57]} 7. Bg5 {[%clk 0:03:03]}  Be6 {[%clk 0:02:49]} 8. exd5 {[%clk 0:03:02]}  Qxd5 {[%clk 0:02:48]} 9. Qxd5 {[%clk 0:03:00]}  Nxd5 {[%clk 0:02:49]} 10. N1d2 {[%clk 0:02:33]}  f6 {[%clk 0:02:48]} 11. Bh4 {[%clk 0:02:33]}  Ne3 {[%clk 0:02:40]} 12. Bd3 {[%clk 0:02:29]}  Nxg2+ {[%clk 0:02:40]} 0-1


[Site "https://www.chess.com"]

[Event "Titled Tuesday Blitz January 10 Early 2023"]
[White "Mohota, Nisha"]
[Black "Heinemann, Josefine"]
[WhiteFideId "5004330"]
[BlackFideId "12900460"]
[WhiteElo "2177"]
[BlackElo "2289"]
[Result "1-0"]
[Round "08"]
[TimeControl "180+2"]
[Date "2023.01.10"]
[WhiteClock "0:00:31"]
[BlackClock "0:01:25"]

1. e4 {[%clk 0:03:00]}  c6 {[%clk 0:02:58]} 2. d4 {[%clk 0:02:56]}  d5 {[%clk 0:02:58]} 3. e5 {[%clk 0:02:57]}  Bf5 {[%clk 0:02:56]} 4. h4 {[%clk 0:02:55]}  h5 {[%clk 0:02:55]} 5. c4 {[%clk 0:02:55]}  e6 {[%clk 0:02:50]} 6. Nc3 {[%clk 0:02:55]}  Ne7 {[%clk 0:02:36]} 7. Nge2 {[%clk 0:02:55]}  dxc4 {[%clk 0:02:36]} 8. Ng3 {[%clk 0:02:55]}  Bg6 {[%clk 0:02:35]} 9. Bxc4 {[%clk 0:02:45]}  Nf5 {[%clk 0:02:34]} 10. Bg5 {[%clk 0:02:31]}  Be7 {[%clk 0:02:33]} 11. Bxe7 {[%clk 0:02:16]}  Qxe7 {[%clk 0:02:31]} 12. Nce4 {[%clk 0:02:12]}  Nxh4 {[%clk 0:02:18]} 13. Nd6+ {[%clk 0:02:09]}  Kf8 {[%clk 0:02:17]} 14. Kf1 {[%clk 0:01:48]}  Nd7 {[%clk 0:01:51]} 15. Qd2 {[%clk 0:01:35]}  Nb6 {[%clk 0:01:49]} 16. Bb3 {[%clk 0:01:23]}  Rd8 {[%clk 0:01:36]} 17. Rc1 {[%clk 0:01:09]}  Nf5 {[%clk 0:01:34]} 18. Ngxf5 {[%clk 0:01:01]}  Bxf5 {[%clk 0:01:33]} 19. Qf4 {[%clk 0:00:51]}  Bg6 {[%clk 0:01:30]} 20. g4 {[%clk 0:00:43]}  Kg8 {[%clk 0:01:28]} 21. Kg2 {[%clk 0:00:34]}  hxg4 {[%clk 0:01:27]} 22. Rxh8+ {[%clk 0:00:33]}  Kxh8 {[%clk 0:01:25]} 23. Rh1+ {[%clk 0:00:34]}  Kg8 {[%clk 0:01:25]} 24. Qh2 {[%clk 0:00:31]} 1-0


[Site "https://www.chess.com"]

[Event "Titled Tuesday Blitz January 10 Early 2023"]
[White "Szyszylo, Rafal"]
[Black "Riverol, Jose"]
[WhiteFideId "1109626"]
[BlackFideId "3000427"]
[WhiteElo "2091"]
[BlackElo "2304"]
[Result "1/2-1/2"]
[Round "08"]
[TimeControl "180+2"]
[Date "2023.01.10"]
[WhiteClock "0:00:06"]
[BlackClock "0:00:09"]

1. e4 {[%clk 0:03:00]}  c5 {[%clk 0:02:59]} 2. Nf3 {[%clk 0:03:01]}  Nc6 {[%clk 0:02:59]} 3. Bb5 {[%clk 0:03:00]}  Na5 {[%clk 0:02:59]} 4. O-O {[%clk 0:02:59]}  a6 {[%clk 0:02:59]} 5. Be2 {[%clk 0:02:59]}  d6 {[%clk 0:03:00]} 6. c3 {[%clk 0:02:59]}  Nf6 {[%clk 0:03:00]} 7. Qc2 {[%clk 0:02:58]}  Bg4 {[%clk 0:02:58]} 8. d3 {[%clk 0:02:56]}  e6 {[%clk 0:02:56]} 9. Nbd2 {[%clk 0:02:57]}  Be7 {[%clk 0:02:56]} 10. h3 {[%clk 0:02:56]}  Bh5 {[%clk 0:02:56]} 11. Re1 {[%clk 0:02:55]}  Rc8 {[%clk 0:02:55]} 12. a4 {[%clk 0:02:55]}  O-O {[%clk 0:02:54]} 13. Nf1 {[%clk 0:02:54]}  Nc6 {[%clk 0:02:49]} 14. Ng3 {[%clk 0:02:53]}  Bg6 {[%clk 0:02:48]} 15. Bf1 {[%clk 0:02:38]}  Re8 {[%clk 0:02:41]} 16. Bd2 {[%clk 0:02:36]}  Bf8 {[%clk 0:02:36]} 17. Nh4 {[%clk 0:02:32]}  Nxe4 {[%clk 0:01:50]} 18. Nxg6 {[%clk 0:02:28]}  Nxg3 {[%clk 0:01:49]} 19. Nxf8 {[%clk 0:02:22]}  Nxf1 {[%clk 0:01:49]} 20. Nxe6 {[%clk 0:02:21]}  Rxe6 {[%clk 0:01:32]} 21. Rxe6 {[%clk 0:02:18]}  fxe6 {[%clk 0:01:23]} 22. Rxf1 {[%clk 0:02:19]}  Qf6 {[%clk 0:01:19]} 23. Qb3 {[%clk 0:02:08]}  Rc7 {[%clk 0:00:57]} 24. Re1 {[%clk 0:02:07]}  Re7 {[%clk 0:00:47]} 25. f4 {[%clk 0:01:55]}  Qf5 {[%clk 0:00:42]} 26. Qc4 {[%clk 0:01:44]}  Na5 {[%clk 0:00:33]} 27. Qe4 {[%clk 0:01:44]}  Qxe4 {[%clk 0:00:29]} 28. Rxe4 {[%clk 0:01:43]}  d5 {[%clk 0:00:22]} 29. Re2 {[%clk 0:01:37]}  Nc6 {[%clk 0:00:20]} 30. Kf2 {[%clk 0:01:25]}  b5 {[%clk 0:00:20]} 31. axb5 {[%clk 0:01:19]}  axb5 {[%clk 0:00:21]} 32. g4 {[%clk 0:01:16]}  Kf7 {[%clk 0:00:21]} 33. Re1 {[%clk 0:01:12]}  Ra7 {[%clk 0:00:21]} 34. Be3 {[%clk 0:01:08]}  d4 {[%clk 0:00:20]} 35. cxd4 {[%clk 0:01:08]}  cxd4 {[%clk 0:00:20]} 36. Bc1 {[%clk 0:01:06]}  Nb4 {[%clk 0:00:18]} 37. Ke2 {[%clk 0:01:01]}  Rc7 {[%clk 0:00:18]} 38. Bd2 {[%clk 0:00:58]}  Rc2 {[%clk 0:00:18]} 39. Rb1 {[%clk 0:00:56]}  Nd5 {[%clk 0:00:18]} 40. Kd1 {[%clk 0:00:54]}  Rc6 {[%clk 0:00:18]} 41. Ra1 {[%clk 0:00:43]}  e5 {[%clk 0:00:18]} 42. f5 {[%clk 0:00:35]}  g6 {[%clk 0:00:17]} 43. Ra7+ {[%clk 0:00:34]}  Rc7 {[%clk 0:00:17]} 44. fxg6+ {[%clk 0:00:21]}  hxg6 {[%clk 0:00:17]} 45. Ra6 {[%clk 0:00:20]}  Nf6 {[%clk 0:00:14]} 46. Bg5 {[%clk 0:00:17]}  Nh7 {[%clk 0:00:11]} 47. Bd2 {[%clk 0:00:15]}  Nf8 {[%clk 0:00:10]} 48. h4 {[%clk 0:00:15]}  Ne6 {[%clk 0:00:11]} 49. h5 {[%clk 0:00:16]}  gxh5 {[%clk 0:00:11]} 50. gxh5 {[%clk 0:00:17]}  Kf6 {[%clk 0:00:10]} 51. h6 {[%clk 0:00:17]}  Rh7 {[%clk 0:00:10]} 52. Rb6 {[%clk 0:00:16]}  Kf5 {[%clk 0:00:10]} 53. Rxb5 {[%clk 0:00:16]}  Nf4 {[%clk 0:00:11]} 54. Kc2 {[%clk 0:00:13]}  Rxh6 {[%clk 0:00:07]} 55. Bxf4 {[%clk 0:00:12]}  Kxf4 {[%clk 0:00:07]} 56. b4 {[%clk 0:00:11]}  Rc6+ {[%clk 0:00:07]} 57. Rc5 {[%clk 0:00:11]}  Rb6 {[%clk 0:00:06]} 58. b5 {[%clk 0:00:11]}  e4 {[%clk 0:00:06]} 59. dxe4 {[%clk 0:00:08]}  Kxe4 {[%clk 0:00:07]} 60. Kb3 {[%clk 0:00:08]}  d3 {[%clk 0:00:07]} 61. Kc4 {[%clk 0:00:06]}  d2 {[%clk 0:00:08]} 62. Rd5 {[%clk 0:00:07]}  Ke3 {[%clk 0:00:08]} 63. Kc5 {[%clk 0:00:05]}  Rb8 {[%clk 0:00:08]} 64. b6 {[%clk 0:00:05]}  Ke2 {[%clk 0:00:08]} 65. Kc6 {[%clk 0:00:05]}  Rxb6+ {[%clk 0:00:08]} 66. Kxb6 {[%clk 0:00:05]}  d1=Q {[%clk 0:00:08]} 67. Rxd1 {[%clk 0:00:06]}  Kxd1 {[%clk 0:00:09]} 1/2-1/2


[Site "https://www.chess.com"]

[Event "Titled Tuesday Blitz January 10 Early 2023"]
[White "Kirillov, Dmitry"]
[Black "Cardozo Munar, Carlos Eduardo"]
[WhiteFideId "34180572"]
[BlackFideId "4409477"]
[WhiteElo "2179"]
[BlackElo "2043"]
[Result "1-0"]
[Round "08"]
[TimeControl "180+2"]
[Date "2023.01.10"]
[WhiteClock "0:01:04"]
[BlackClock "0:00:23"]

1. e4 {[%clk 0:02:59]}  e6 {[%clk 0:03:00]} 2. d4 {[%clk 0:02:58]}  d5 {[%clk 0:03:00]} 3. Nd2 {[%clk 0:02:59]}  c5 {[%clk 0:03:00]} 4. exd5 {[%clk 0:02:58]}  Qxd5 {[%clk 0:03:00]} 5. Ngf3 {[%clk 0:02:58]}  cxd4 {[%clk 0:02:59]} 6. Bc4 {[%clk 0:02:58]}  Qd7 {[%clk 0:02:58]} 7. Nb3 {[%clk 0:02:54]}  Nc6 {[%clk 0:02:58]} 8. O-O {[%clk 0:02:53]}  Nf6 {[%clk 0:02:58]} 9. Nbxd4 {[%clk 0:02:53]}  Nxd4 {[%clk 0:02:58]} 10. Nxd4 {[%clk 0:02:54]}  a6 {[%clk 0:02:58]} 11. Re1 {[%clk 0:02:50]}  Bd6 {[%clk 0:02:58]} 12. Bd3 {[%clk 0:02:46]}  Qc7 {[%clk 0:02:52]} 13. h3 {[%clk 0:02:41]}  O-O {[%clk 0:02:51]} 14. Qf3 {[%clk 0:02:37]}  Be5 {[%clk 0:02:31]} 15. c3 {[%clk 0:02:25]}  Bd7 {[%clk 0:02:28]} 16. Bg5 {[%clk 0:02:15]}  Rad8 {[%clk 0:02:27]} 17. Rad1 {[%clk 0:02:08]}  h6 {[%clk 0:02:25]} 18. Bh4 {[%clk 0:01:56]}  g5 {[%clk 0:02:24]} 19. Bg3 {[%clk 0:01:53]}  Bxg3 {[%clk 0:02:07]} 20. Qxf6 {[%clk 0:01:40]}  Qf4 {[%clk 0:02:05]} 21. Qxh6 {[%clk 0:01:28]}  Bxf2+ {[%clk 0:01:58]} 22. Kh1 {[%clk 0:01:27]}  f5 {[%clk 0:01:48]} 23. Qg6+ {[%clk 0:01:25]}  Kh8 {[%clk 0:01:47]} 24. Qh6+ {[%clk 0:01:26]}  Kg8 {[%clk 0:01:47]} 25. Nxe6 {[%clk 0:01:14]}  Bxe6 {[%clk 0:01:30]} 26. Rxe6 {[%clk 0:01:13]}  Qe3 {[%clk 0:00:23]} 27. Rxe3 {[%clk 0:01:04]}  Bxe3 {[%clk 0:00:23]} 28. Bc4+ {[%clk 0:01:04]} 1-0


[Site "https://www.chess.com"]

[Event "Titled Tuesday Blitz January 10 Early 2023"]
[White "Shubenkova, Veronika"]
[Black "Johnson, Ben"]
[WhiteFideId "44124040"]
[BlackFideId "2010917"]
[WhiteElo "1960"]
[BlackElo "1961"]
[Result "1-0"]
[Round "08"]
[TimeControl "180+2"]
[Date "2023.01.10"]
[WhiteClock "0:00:42"]
[BlackClock "0:00:01"]

1. e4 {[%clk 0:03:00]}  c5 {[%clk 0:02:58]} 2. Nc3 {[%clk 0:03:00]}  Nc6 {[%clk 0:02:58]} 3. g3 {[%clk 0:02:59]}  g6 {[%clk 0:02:58]} 4. Bg2 {[%clk 0:02:57]}  Bg7 {[%clk 0:02:59]} 5. f4 {[%clk 0:02:56]}  d6 {[%clk 0:02:51]} 6. d3 {[%clk 0:02:56]}  Nf6 {[%clk 0:02:51]} 7. Nf3 {[%clk 0:02:56]}  O-O {[%clk 0:02:51]} 8. Be3 {[%clk 0:02:56]}  Ng4 {[%clk 0:02:51]} 9. Qd2 {[%clk 0:02:52]}  Nxe3 {[%clk 0:02:50]} 10. Qxe3 {[%clk 0:02:53]}  Nd4 {[%clk 0:02:50]} 11. Qd2 {[%clk 0:02:49]}  Bg4 {[%clk 0:02:15]} 12. O-O {[%clk 0:02:47]}  Qd7 {[%clk 0:02:11]} 13. Rab1 {[%clk 0:02:43]}  b5 {[%clk 0:02:05]} 14. Ne2 {[%clk 0:02:43]}  Nxe2+ {[%clk 0:01:59]} 15. Qxe2 {[%clk 0:02:42]}  b4 {[%clk 0:01:59]} 16. Qd2 {[%clk 0:02:37]}  a5 {[%clk 0:01:56]} 17. Ng5 {[%clk 0:02:32]}  h6 {[%clk 0:01:50]} 18. Nf3 {[%clk 0:02:27]}  a4 {[%clk 0:01:51]} 19. e5 {[%clk 0:02:18]}  d5 {[%clk 0:01:46]} 20. d4 {[%clk 0:02:16]}  Rfc8 {[%clk 0:01:29]} 21. c3 {[%clk 0:02:09]}  cxd4 {[%clk 0:01:21]} 22. cxd4 {[%clk 0:02:05]}  Rc4 {[%clk 0:01:15]} 23. Rf2 {[%clk 0:01:57]}  Rac8 {[%clk 0:01:10]} 24. Rbf1 {[%clk 0:01:54]}  b3 {[%clk 0:01:07]} 25. axb3 {[%clk 0:01:53]}  axb3 {[%clk 0:01:07]} 26. Qe3 {[%clk 0:01:54]}  Qb5 {[%clk 0:01:00]} 27. Nd2 {[%clk 0:01:52]}  Rb4 {[%clk 0:00:51]} 28. h3 {[%clk 0:01:51]}  Bd7 {[%clk 0:00:39]} 29. g4 {[%clk 0:01:49]}  Rc2 {[%clk 0:00:38]} 30. Nf3 {[%clk 0:01:48]}  Rbc4 {[%clk 0:00:31]} 31. Re1 {[%clk 0:01:36]}  Rxf2 {[%clk 0:00:29]} 32. Qxf2 {[%clk 0:01:36]}  Rc2 {[%clk 0:00:28]} 33. Qe3 {[%clk 0:01:28]}  Rxb2 {[%clk 0:00:29]} 34. Bf1 {[%clk 0:01:27]}  Qb4 {[%clk 0:00:27]} 35. Rd1 {[%clk 0:01:10]}  Rc2 {[%clk 0:00:26]} 36. Rb1 {[%clk 0:01:03]}  b2 {[%clk 0:00:22]} 37. Ne1 {[%clk 0:00:59]}  Rc3 {[%clk 0:00:14]} 38. Qf2 {[%clk 0:00:54]}  Rb3 {[%clk 0:00:10]} 39. Nd3 {[%clk 0:00:52]}  Qc3 {[%clk 0:00:09]} 40. Rxb2 {[%clk 0:00:51]}  Ba4 {[%clk 0:00:04]} 41. Rxb3 {[%clk 0:00:50]}  Bxb3 {[%clk 0:00:05]} 42. Nc5 {[%clk 0:00:50]}  Bc4 {[%clk 0:00:04]} 43. Bg2 {[%clk 0:00:49]}  Bf8 {[%clk 0:00:03]} 44. f5 {[%clk 0:00:47]}  e6 {[%clk 0:00:03]} 45. Nd7 {[%clk 0:00:45]}  Bb4 {[%clk 0:00:01]} 46. fxg6 {[%clk 0:00:42]} 1-0


[Site "https://www.chess.com"]

[Event "Titled Tuesday Blitz January 10 Early 2023"]
[White "Ruge, Edison"]
[Black "Topalov, Aleksandar"]
[WhiteFideId "4401000"]
[BlackFideId "925659"]
[WhiteElo "2201"]
[BlackElo "2233"]
[Result "1-0"]
[Round "08"]
[TimeControl "180+2"]
[Date "2023.01.10"]
[WhiteClock "0:02:22"]
[BlackClock "0:02:23"]

1. e4 {[%clk 0:03:00]}  e6 {[%clk 0:02:59]} 2. d3 {[%clk 0:02:39]}  d5 {[%clk 0:02:46]} 3. Nd2 {[%clk 0:02:35]}  c5 {[%clk 0:02:45]} 4. Ngf3 {[%clk 0:02:36]}  Nc6 {[%clk 0:02:45]} 5. g3 {[%clk 0:02:36]}  Nf6 {[%clk 0:02:45]} 6. Bg2 {[%clk 0:02:37]}  Be7 {[%clk 0:02:45]} 7. O-O {[%clk 0:02:37]}  O-O {[%clk 0:02:45]} 8. e5 {[%clk 0:02:37]}  Nd7 {[%clk 0:02:46]} 9. Re1 {[%clk 0:02:37]}  b5 {[%clk 0:02:45]} 10. c3 {[%clk 0:02:36]}  a5 {[%clk 0:02:45]} 11. Nf1 {[%clk 0:02:36]}  b4 {[%clk 0:02:45]} 12. h4 {[%clk 0:02:36]}  Ba6 {[%clk 0:02:44]} 13. Bf4 {[%clk 0:02:35]}  Bb5 {[%clk 0:02:44]} 14. Rc1 {[%clk 0:02:34]}  bxc3 {[%clk 0:02:40]} 15. bxc3 {[%clk 0:02:33]}  Ba6 {[%clk 0:02:37]} 16. c4 {[%clk 0:02:31]}  Nb4 {[%clk 0:02:25]} 17. a3 {[%clk 0:02:24]}  Na2 {[%clk 0:02:23]} 18. Rc2 {[%clk 0:02:22]} 1-0


[Site "https://www.chess.com"]

[Event "Titled Tuesday Blitz January 10 Early 2023"]
[White "Jiganchine, Roman"]
[Black "Mitrovic, Darko R"]
[WhiteFideId "2603667"]
[BlackFideId "927023"]
[WhiteElo "2205"]
[BlackElo "2220"]
[Result "1-0"]
[Round "08"]
[TimeControl "180+2"]
[Date "2023.01.10"]
[WhiteClock "0:00:41"]
[BlackClock "0:00:02"]

1. e4 {[%clk 0:02:59]}  e6 {[%clk 0:02:46]} 2. d4 {[%clk 0:02:58]}  d5 {[%clk 0:02:45]} 3. Nd2 {[%clk 0:02:58]}  Nf6 {[%clk 0:02:45]} 4. Bd3 {[%clk 0:02:58]}  c5 {[%clk 0:02:43]} 5. c3 {[%clk 0:02:58]}  Nc6 {[%clk 0:02:42]} 6. Ngf3 {[%clk 0:02:58]}  cxd4 {[%clk 0:02:41]} 7. cxd4 {[%clk 0:02:58]}  dxe4 {[%clk 0:02:41]} 8. Nxe4 {[%clk 0:02:57]}  Nxe4 {[%clk 0:02:42]} 9. Bxe4 {[%clk 0:02:57]}  Be7 {[%clk 0:02:42]} 10. O-O {[%clk 0:02:57]}  O-O {[%clk 0:02:37]} 11. Bxc6 {[%clk 0:02:44]}  bxc6 {[%clk 0:02:37]} 12. Ne5 {[%clk 0:02:43]}  Bb7 {[%clk 0:02:23]} 13. Qb3 {[%clk 0:02:34]}  Qb6 {[%clk 0:01:59]} 14. Be3 {[%clk 0:02:04]}  Qxb3 {[%clk 0:01:56]} 15. axb3 {[%clk 0:02:03]}  Rfc8 {[%clk 0:01:41]} 16. Rfc1 {[%clk 0:02:00]}  Kf8 {[%clk 0:01:22]} 17. Nd7+ {[%clk 0:01:53]}  Ke8 {[%clk 0:01:22]} 18. Nc5 {[%clk 0:01:53]}  Bxc5 {[%clk 0:01:19]} 19. Rxc5 {[%clk 0:01:54]}  a5 {[%clk 0:01:13]} 20. Rcxa5 {[%clk 0:01:51]}  Rxa5 {[%clk 0:01:13]} 21. Rxa5 {[%clk 0:01:52]}  Ra8 {[%clk 0:01:13]} 22. b4 {[%clk 0:01:52]}  Kd7 {[%clk 0:01:04]} 23. f3 {[%clk 0:01:52]}  Kc8 {[%clk 0:00:41]} 24. Bd2 {[%clk 0:01:48]}  Ba6 {[%clk 0:00:34]} 25. Bc3 {[%clk 0:01:45]}  Kb7 {[%clk 0:00:33]} 26. Kf2 {[%clk 0:01:45]}  Bb5 {[%clk 0:00:32]} 27. g4 {[%clk 0:01:42]}  Rd8 {[%clk 0:00:31]} 28. Ke3 {[%clk 0:01:42]}  Rd5 {[%clk 0:00:30]} 29. h4 {[%clk 0:01:40]}  h5 {[%clk 0:00:30]} 30. Ra1 {[%clk 0:01:36]}  g6 {[%clk 0:00:25]} 31. Rg1 {[%clk 0:01:34]}  Kc8 {[%clk 0:00:22]} 32. Kf4 {[%clk 0:01:33]}  Kd7 {[%clk 0:00:21]} 33. Re1 {[%clk 0:01:33]}  Ke7 {[%clk 0:00:19]} 34. Re5 {[%clk 0:01:29]}  Rxe5 {[%clk 0:00:15]} 35. dxe5 {[%clk 0:01:30]}  Be2 {[%clk 0:00:11]} 36. Bd4 {[%clk 0:01:23]}  Bd1 {[%clk 0:00:10]} 37. Bc5+ {[%clk 0:01:22]}  Kd7 {[%clk 0:00:10]} 38. Kg3 {[%clk 0:01:04]}  Ke8 {[%clk 0:00:09]} 39. Be3 {[%clk 0:00:59]}  Kd7 {[%clk 0:00:09]} 40. Bg5 {[%clk 0:00:59]}  Ke8 {[%clk 0:00:08]} 41. Bf6 {[%clk 0:00:59]}  Kd7 {[%clk 0:00:07]} 42. gxh5 {[%clk 0:00:52]}  gxh5 {[%clk 0:00:07]} 43. Kf4 {[%clk 0:00:52]}  Ke8 {[%clk 0:00:07]} 44. Ke3 {[%clk 0:00:52]}  Kd7 {[%clk 0:00:07]} 45. Kf2 {[%clk 0:00:51]}  Ke8 {[%clk 0:00:07]} 46. Bg5 {[%clk 0:00:50]}  Kd7 {[%clk 0:00:08]} 47. Be3 {[%clk 0:00:51]}  Ke8 {[%clk 0:00:08]} 48. Bc5 {[%clk 0:00:52]}  Kd7 {[%clk 0:00:08]} 49. f4 {[%clk 0:00:51]}  Bg4 {[%clk 0:00:08]} 50. Ke3 {[%clk 0:00:51]}  Ke8 {[%clk 0:00:07]} 51. Bd6 {[%clk 0:00:50]}  Kd7 {[%clk 0:00:07]} 52. Kd4 {[%clk 0:00:50]}  Be2 {[%clk 0:00:07]} 53. Kc5 {[%clk 0:00:50]}  Bb5 {[%clk 0:00:07]} 54. Kd4 {[%clk 0:00:48]}  Bf1 {[%clk 0:00:06]} 55. Ke4 {[%clk 0:00:48]}  Bb5 {[%clk 0:00:07]} 56. f5 {[%clk 0:00:47]}  Bf1 {[%clk 0:00:05]} 57. Kf4 {[%clk 0:00:45]}  Bd3 {[%clk 0:00:04]} 58. Kg5 {[%clk 0:00:43]}  Bxf5 {[%clk 0:00:03]} 59. Kxh5 {[%clk 0:00:43]}  Bg6+ {[%clk 0:00:02]} 60. Kg5 {[%clk 0:00:43]}  Bd3 {[%clk 0:00:02]} 61. Kf6 {[%clk 0:00:42]}  Ke8 {[%clk 0:00:02]} 62. h5 {[%clk 0:00:41]} 1-0


[Site "https://www.chess.com"]

[Event "Titled Tuesday Blitz January 10 Early 2023"]
[White "Fajdetic, Hrvoje"]
[Black "Joubert, Dantelle"]
[WhiteFideId "14501945"]
[BlackFideId "14310813"]
[WhiteElo "2151"]
[BlackElo "1566"]
[Result "1-0"]
[Round "08"]
[TimeControl "180+2"]
[Date "2023.01.10"]
[WhiteClock "0:00:18"]
[BlackClock "0:00:03"]

1. f4 {[%clk 0:03:00]}  e5 {[%clk 0:02:58]} 2. fxe5 {[%clk 0:02:59]}  d6 {[%clk 0:02:57]} 3. exd6 {[%clk 0:02:59]}  Bxd6 {[%clk 0:02:56]} 4. Nf3 {[%clk 0:02:59]}  Nc6 {[%clk 0:02:55]} 5. Nc3 {[%clk 0:02:59]}  Bg4 {[%clk 0:02:54]} 6. Ne4 {[%clk 0:02:50]}  Be7 {[%clk 0:02:49]} 7. Nf2 {[%clk 0:02:43]}  Bh5 {[%clk 0:02:43]} 8. d3 {[%clk 0:02:37]}  Qd7 {[%clk 0:02:42]} 9. Bf4 {[%clk 0:02:34]}  O-O-O {[%clk 0:02:26]} 10. Qd2 {[%clk 0:02:34]}  Qd5 {[%clk 0:02:14]} 11. e4 {[%clk 0:02:25]}  Qb5 {[%clk 0:02:08]} 12. O-O-O {[%clk 0:02:21]}  Qa4 {[%clk 0:02:01]} 13. Kb1 {[%clk 0:02:13]}  h6 {[%clk 0:01:33]} 14. Qc3 {[%clk 0:02:03]}  Bxf3 {[%clk 0:01:24]} 15. gxf3 {[%clk 0:02:03]}  Bf6 {[%clk 0:01:23]} 16. Qb3 {[%clk 0:02:00]}  Qxb3 {[%clk 0:01:20]} 17. axb3 {[%clk 0:02:01]}  g5 {[%clk 0:01:14]} 18. Bg3 {[%clk 0:01:56]}  h5 {[%clk 0:01:08]} 19. h4 {[%clk 0:01:55]}  Nge7 {[%clk 0:01:00]} 20. Bh3+ {[%clk 0:01:50]}  Kb8 {[%clk 0:00:55]} 21. hxg5 {[%clk 0:01:50]}  Bxg5 {[%clk 0:00:53]} 22. c3 {[%clk 0:01:45]}  Rdg8 {[%clk 0:00:46]} 23. f4 {[%clk 0:00:52]}  Bf6 {[%clk 0:00:41]} 24. Bh2 {[%clk 0:00:50]}  Bh4 {[%clk 0:00:38]} 25. Rdf1 {[%clk 0:00:46]}  Rg7 {[%clk 0:00:35]} 26. Nd1 {[%clk 0:00:43]}  Rhg8 {[%clk 0:00:33]} 27. Ne3 {[%clk 0:00:42]}  Bg3 {[%clk 0:00:30]} 28. Nf5 {[%clk 0:00:38]}  Nxf5 {[%clk 0:00:29]} 29. Bxf5 {[%clk 0:00:39]}  h4 {[%clk 0:00:28]} 30. e5 {[%clk 0:00:35]}  Nd8 {[%clk 0:00:25]} 31. Be4 {[%clk 0:00:34]}  Ne6 {[%clk 0:00:20]} 32. Bxg3 {[%clk 0:00:31]}  hxg3 {[%clk 0:00:19]} 33. Rhg1 {[%clk 0:00:31]}  Rg4 {[%clk 0:00:17]} 34. f5 {[%clk 0:00:28]}  Nf4 {[%clk 0:00:15]} 35. Bf3 {[%clk 0:00:24]}  Rh4 {[%clk 0:00:14]} 36. d4 {[%clk 0:00:24]}  Nh3 {[%clk 0:00:12]} 37. Rg2 {[%clk 0:00:23]}  Nf4 {[%clk 0:00:12]} 38. Rd2 {[%clk 0:00:21]}  g2 {[%clk 0:00:11]} 39. Rg1 {[%clk 0:00:21]}  Rh1 {[%clk 0:00:11]} 40. Rxh1 {[%clk 0:00:21]}  gxh1=Q+ {[%clk 0:00:10]} 41. Bxh1 {[%clk 0:00:22]}  Rg1+ {[%clk 0:00:10]} 42. Kc2 {[%clk 0:00:22]}  Rxh1 {[%clk 0:00:11]} 43. Rf2 {[%clk 0:00:21]}  Nh5 {[%clk 0:00:08]} 44. e6 {[%clk 0:00:21]}  fxe6 {[%clk 0:00:07]} 45. fxe6 {[%clk 0:00:22]}  b5 {[%clk 0:00:04]} 46. Rf8+ {[%clk 0:00:20]}  Kb7 {[%clk 0:00:04]} 47. e7 {[%clk 0:00:21]}  Ng7 {[%clk 0:00:04]} 48. e8=Q {[%clk 0:00:21]}  Nxe8 {[%clk 0:00:04]} 49. Rxe8 {[%clk 0:00:21]}  Rh2+ {[%clk 0:00:05]} 50. Kb1 {[%clk 0:00:20]}  Kc6 {[%clk 0:00:03]} 51. Re5 {[%clk 0:00:19]}  Kb6 {[%clk 0:00:03]} 52. Ka2 {[%clk 0:00:18]}  a6 {[%clk 0:00:03]} 53. b4 {[%clk 0:00:18]} 1-0


[Site "https://www.chess.com"]

[Event "Titled Tuesday Blitz January 10 Early 2023"]
[White "Kleiman, Jake"]
[Black "Petrova, Irina"]
[WhiteFideId "2020041"]
[BlackFideId "14124122"]
[WhiteElo "2399"]
[BlackElo "2108"]
[Result "1-0"]
[Round "08"]
[TimeControl "180+2"]
[Date "2023.01.10"]
[WhiteClock "0:00:39"]
[BlackClock "0:01:15"]

1. e4 {[%clk 0:02:53]}  d6 {[%clk 0:03:00]} 2. d4 {[%clk 0:02:53]}  Nf6 {[%clk 0:03:00]} 3. Nc3 {[%clk 0:02:54]}  e5 {[%clk 0:03:00]} 4. Nf3 {[%clk 0:02:55]}  Nbd7 {[%clk 0:02:59]} 5. dxe5 {[%clk 0:02:56]}  dxe5 {[%clk 0:02:59]} 6. Bc4 {[%clk 0:02:56]}  Bb4 {[%clk 0:02:58]} 7. Qe2 {[%clk 0:02:48]}  O-O {[%clk 0:02:57]} 8. O-O {[%clk 0:02:46]}  c6 {[%clk 0:02:57]} 9. a4 {[%clk 0:02:42]}  Qe7 {[%clk 0:02:53]} 10. a5 {[%clk 0:02:22]}  Nc5 {[%clk 0:02:50]} 11. Na2 {[%clk 0:02:06]}  Ncxe4 {[%clk 0:02:44]} 12. Nxb4 {[%clk 0:02:06]}  Qxb4 {[%clk 0:02:45]} 13. Nxe5 {[%clk 0:02:06]}  Nd6 {[%clk 0:02:29]} 14. c3 {[%clk 0:01:32]}  Qc5 {[%clk 0:02:28]} 15. b4 {[%clk 0:01:31]}  Qxe5 {[%clk 0:02:19]} 16. Qxe5 {[%clk 0:01:31]}  Nxc4 {[%clk 0:02:19]} 17. Qd4 {[%clk 0:01:10]}  Be6 {[%clk 0:02:18]} 18. Bg5 {[%clk 0:01:10]}  Nd7 {[%clk 0:02:06]} 19. Rfe1 {[%clk 0:01:07]}  Bd5 {[%clk 0:01:57]} 20. Re7 {[%clk 0:01:06]}  Rad8 {[%clk 0:01:49]} 21. Rae1 {[%clk 0:00:53]}  f6 {[%clk 0:01:45]} 22. Bh6 {[%clk 0:00:51]}  Rf7 {[%clk 0:01:34]} 23. Re8+ {[%clk 0:00:42]}  Rxe8 {[%clk 0:01:30]} 24. Rxe8+ {[%clk 0:00:43]}  Rf8 {[%clk 0:01:30]} 25. Rxf8+ {[%clk 0:00:38]}  Kxf8 {[%clk 0:01:31]} 26. Bxg7+ {[%clk 0:00:39]}  Kxg7 {[%clk 0:01:27]} 27. Qg4+ {[%clk 0:00:39]}  Kh6 {[%clk 0:01:25]} 28. Qxd7 {[%clk 0:00:40]}  b6 {[%clk 0:01:15]} 29. a6 {[%clk 0:00:39]} 1-0


[Site "https://www.chess.com"]